bitfinex/quotes_ETHUSD_20251221
["timestamp","ask_amount","ask_price","bid_price","bid_amount"]
[1766353453944,1.7548,2982.4,2982.1,0.002]
[1766353454450,1.7548,2982.4,2981.7,0.439]
[1766353454451,3.35302209,2982.4,2981.7,0.439]
[1766353454745,0.9547,2982.1,2981.6,0.44]
[1766353454943,3.52862149,2982.3,2981.6,0.44]
[1766353455141,1.3158,2982.2,2981.6,0.44]
[1766353455348,1.3158,2982.0,2981.6,0.44]
[1766353455649,1.3158,2981.8,2981.6,0.44]
[1766353456545,1.3158,2981.8,2981.3,3.79623224]
[1766353457119,1.3158,2981.8,2981.3,0.442]
[1766353457361,1.3158,2981.8,2981.5,0.002]
[1766353458349,1.3158,2982.0,2981.5,0.002]
[1766353460146,0.9547,2982.0,2981.5,0.002]
[1766353460448,0.53658,2982.3,2981.5,0.002]
[1766353460645,1.3158,2982.2,2981.5,0.002]
[1766353461620,0.3611,2982.2,2981.5,0.002]
[1766353461820,0.9547,2982.1,2981.5,0.002]
[1766353463854,0.3611,2982.0,2981.5,0.002]
[1766353464028,3.3533599,2982.1,2981.5,0.002]
[1766353464228,1.3158,2981.8,2981.5,0.002]
[1766353465624,1.3158,2981.7,2981.5,0.002]
[1766353466860,0.9547,2981.6,2981.5,0.002]
[1766353467448,1.3158,2981.6,2981.5,0.002]
[1766353468186,0.3611,2981.6,2980.9,1.00756851]
[1766353468338,0.3611,2981.4,2980.3,3.35729518]
[1766353468542,1.3947,2981.3,2980.5,0.3489]
[1766353469061,0.9547,2981.3,2980.5,0.18535313]
[1766353469269,1.3947,2981.3,2980.5,0.18535313]
[1766353469477,0.8011,2981.3,2980.5,0.18535313]
[1766353469640,0.9547,2981.2,2980.5,0.85873402]
[1766353469841,1.96250883,2981.2,2980.5,0.85873402]
[1766353470042,1.00780883,2981.2,2980.5,0.85873402]
[1766353470460,1.00780883,2981.2,2980.4,3.35725398]
[1766353470461,1.00780883,2981.2,2980.4,7.95990444]
[1766353470661,3.35338943,2982.1,2980.7,0.02007159]
[1766353470662,6.9066832,2982.1,2980.7,0.02007159]
[1766353470871,0.8011,2982.0,2981.0,4.60265046]
[1766353471082,0.3611,2981.9,2981.1,0.1817]
[1766353471239,1.48897531,2981.8,2981.1,0.1817]
[1766353471438,0.9519,2981.7,2981.1,0.1817]
[1766353471835,0.18087531,2981.8,2981.1,0.1817]
[1766353472281,0.9519,2981.8,2981.1,0.1817]
[1766353472437,1.3081,2981.8,2981.1,0.1817]
[1766353473474,0.3562,2981.8,2981.1,0.1817]
[1766353473641,1.3081,2981.8,2981.1,0.1817]
[1766353473957,1.3081,2981.8,2981.0,0.1817]
[1766353474165,1.3081,2981.8,2981.2,0.1817]
[1766353474552,0.9519,2981.7,2981.2,0.1817]
[1766353476446,1.3135,2981.7,2981.0,5.1098857]
[1766353476654,1.3135,2981.7,2981.0,5.2915857]
[1766353476857,1.3135,2981.7,2981.1,0.1817]
[1766353477056,1.3495,2981.6,2981.1,1.18934297]
[1766353477258,1.3495,2981.6,2981.1,1.81926584]
[1766353478383,0.9879,2981.5,2981.1,1.00764297]
[1766353479189,0.9889,2982.1,2981.4,0.1817]
[1766353479395,0.9889,2982.1,2981.6,0.1817]
[1766353479396,4.78226974,2982.1,2981.6,0.1817]
[1766353479694,5.63197716,2982.1,2981.6,0.1817]
[1766353480258,5.99357716,2982.1,2981.6,0.1817]
[1766353482158,0.9889,2982.1,2981.7,4.61016696]
[1766353482387,0.001,2982.1,2981.7,4.61016696]
[1766353482570,0.001,2982.1,2981.8,0.1817]
[1766353485591,0.001,2982.1,2981.6,4.61016696]
[1766353485774,0.001,2982.1,2981.6,4.79186696]
[1766353486866,0.001,2982.1,2981.7,0.1817]
[1766353487177,0.001,2982.1,2981.7,4.79186696]
[1766353487377,0.001,2982.1,2981.8,0.1817]
[1766353487593,3.71453673,2982.5,2981.9,0.1807]
[1766353487781,3.71453673,2982.5,2981.6,5.23086696]
[1766353487782,1.3495,2982.4,2981.6,5.23086696]
[1766353487981,0.3616,2982.3,2981.6,5.23086696]
[1766353488177,0.9879,2982.2,2981.6,5.23086696]
[1766353488377,0.9879,2982.2,2981.6,5.75395366]
[1766353488896,3.71473406,2982.3,2981.7,0.1807]
[1766353489066,4.34090704,2982.4,2982.0,4.61016696]
[1766353489395,4.34090704,2982.4,2982.0,4.79086696]
[1766353489396,3.35300704,2982.4,2982.0,4.79086696]
[1766353490197,3.35300704,2982.4,2981.8,4.79086696]
[1766353490198,8.05551408,2982.4,2981.8,4.79086696]
[1766353490892,0.9879,2982.3,2981.8,4.61016696]
[1766353491065,1.3495,2982.3,2981.8,4.61016696]
[1766353491490,0.84955141,2982.3,2981.8,4.61016696]
[1766353491693,1.3495,2982.2,2981.8,4.61016696]
[1766353493773,4.70282574,2982.2,2981.8,4.61016696]
[1766353495312,4.70282574,2982.2,2981.6,0.6207]
[1766353495610,4.70282574,2982.2,2981.7,4.61016696]
[1766353495812,4.70382574,2982.2,2981.7,4.61016696]
[1766353496985,4.70382574,2982.2,2981.7,4.79086696]
[1766353500010,4.70382574,2982.2,2981.8,4.61016696]
[1766353500167,4.70382574,2982.2,2981.7,4.79086696]
[1766353500582,4.70382574,2982.2,2981.6,0.44]
[1766353500583,1.3495,2982.1,2981.6,0.44]
[1766353500812,0.3616,2981.9,2981.4,4.61016696]
[1766353501026,1.3495,2981.8,2981.4,4.61016696]
[1766353501186,0.9879,2981.7,2981.2,4.79086696]
[1766353501388,1.3495,2981.7,2981.2,4.79086696]
[1766353502114,3.35390394,2981.6,2981.2,4.79086696]
[1766353502289,0.3616,2981.5,2981.0,5.05216696]
[1766353502488,0.9879,2981.4,2981.0,4.61216696]
[1766353502727,0.9879,2981.6,2981.2,4.61016696]
[1766353503246,0.3616,2981.6,2981.2,4.61016696]
[1766353503725,1.3495,2981.6,2981.2,4.61016696]
[1766353504423,0.9879,2981.5,2981.2,4.61016696]
[1766353504596,3.35370375,2981.8,2981.0,0.002]
[1766353504597,4.70317898,2981.8,2981.0,0.002]
[1766353504802,0.44,2981.7,2981.6,0.002]
[1766353505002,1.28967837,2981.7,2981.6,0.002]
[1766353505237,1.28967837,2981.7,2981.3,4.61016696]
[1766353505400,2.64457837,2981.7,2981.2,0.1807]
[1766353505607,0.9857,2981.6,2981.1,4.61016696]
[1766353505903,1.3549,2981.6,2981.1,4.61016696]
[1766353506141,0.9857,2981.5,2981.0,0.1847]
[1766353506637,1.3549,2981.5,2981.0,0.1847]
[1766353507204,1.3549,2981.5,2981.0,0.002]
[1766353507406,0.9857,2981.4,2981.0,0.002]
[1766353508855,0.9857,2981.6,2981.1,4.61016696]
[1766353509018,0.9857,2981.6,2981.1,4.79286696]
[1766353511154,0.9857,2981.6,2981.1,0.1827]
[1766353511364,0.9857,2981.6,2981.1,4.79286696]
[1766353512048,0.9857,2981.6,2981.1,4.61016696]
[1766353512350,0.9857,2981.6,2981.2,0.1827]
[1766353512719,4.16301984,2981.7,2981.2,0.1827]
[1766353514050,5.14871984,2981.7,2981.2,0.1827]
[1766353515065,4.70871984,2981.7,2981.2,0.1827]
[1766353515265,5.55895999,2981.7,2981.2,0.1827]
[1766353515964,7.92712727,2981.7,2981.2,0.1827]
[1766353516167,0.9857,2981.6,2981.2,0.1827]
[1766353516334,0.9857,2981.6,2981.0,4.79486696]
[1766353517664,4.33960678,2981.6,2981.0,4.79486696]
[1766353517973,4.70880678,2981.6,2981.0,4.79486696]
[1766353518853,4.70880678,2981.6,2981.0,4.61216696]
[1766353519188,4.70880678,2981.6,2981.1,0.1827]
[1766353520287,3.79370295,2981.8,2981.1,0.1827]
[1766353520288,3.3533416,2982.1,2981.4,4.61016696]
[1766353520490,3.3533416,2982.1,2981.7,0.1827]
[1766353521184,3.35422915,2982.2,2981.7,0.1827]
[1766353521692,3.35422915,2982.2,2981.8,4.79286696]
[1766353521870,0.85022489,2982.1,2981.8,0.1827]
[1766353523199,4.20363579,2982.1,2981.8,0.1827]
[1766353524199,0.001,2982.2,2981.8,4.79266093]
[1766353524666,0.001,2982.2,2981.9,0.1827]
[1766353525270,3.35307228,2982.4,2982.0,4.60996093]
[1766353525480,4.33862848,2982.5,2982.0,4.60996093]
[1766353525694,4.33862848,2982.5,2982.1,0.1827]
[1766353526196,3.35292848,2982.5,2982.1,0.1827]
[1766353528012,4.77848926,2982.6,2982.1,0.1827]
[1766353528606,0.9857,2982.6,2982.2,4.60996093]
[1766353528814,0.3692,2982.7,2982.2,4.60996093]
[1766353528815,0.3692,2982.7,2982.4,4.60996093]
[1766353529114,0.3692,2982.7,2982.2,4.79266093]
[1766353529318,4.78404967,2982.8,2982.2,4.60996093]
[1766353529492,4.78404967,2982.8,2982.3,0.1827]
[1766353530592,0.001,2982.5,2982.3,0.1827]
[1766353530791,4.78404967,2982.8,2982.3,0.1827]
[1766353531398,4.78404967,2982.8,2982.4,4.60996093]
[1766353531593,3.35364967,2982.8,2982.4,4.79266093]
[1766353532002,6.70629934,2982.8,2982.4,0.1827]
[1766353532393,7.07439934,2982.8,2982.2,4.79266093]
[1766353532597,0.9904,2982.7,2982.2,4.79266093]
[1766353532795,0.44,2982.9,2982.6,4.60996093]
[1766353533005,4.7107663,2983.1,2982.6,4.60996093]
[1766353533006,3.35236311,2983.0,2982.6,4.60996093]
[1766353533307,3.35236311,2983.0,2982.6,4.79266093]
[1766353533489,3.35224481,2983.1,2982.8,4.60996093]
[1766353533885,0.001,2983.2,2982.3,0.44]
[1766353534111,3.3531369,2983.2,2982.5,4.60635211]
[1766353534329,3.3531369,2983.2,2982.5,5.11098732]
[1766353535789,0.9164,2983.1,2982.3,0.44]
[1766353536127,0.001,2983.2,2982.3,0.44]
[1766353536128,1.261,2982.8,2982.3,0.44]
[1766353536906,0.001,2983.2,2982.3,0.44]
[1766353537225,0.9164,2982.7,2982.3,0.44]
[1766353537532,1.261,2982.7,2982.3,0.44]
[1766353537896,3.35226128,2983.1,2982.3,0.44]
[1766353538133,1.261,2983.0,2982.3,0.44]
[1766353538318,7.03994869,2983.1,2982.3,0.44]
[1766353538517,1.261,2983.0,2982.3,0.44]
[1766353538892,7.03994869,2983.1,2982.3,0.44]
[1766353539092,1.261,2982.9,2982.3,0.44]
[1766353540338,3.35255464,2982.8,2982.3,0.44]
[1766353544025,4.61355464,2982.8,2982.3,0.44]
[1766353545320,4.61355464,2982.8,2982.3,0.94463521]
[1766353545991,4.61355464,2982.8,2982.3,0.94663521]
[1766353547223,3.35248043,2982.9,2982.3,0.94663521]
[1766353549329,1.261,2983.0,2982.3,0.94663521]
[1766353549727,0.001,2983.1,2982.3,0.94663521]
[1766353549932,1.261,2983.0,2982.3,0.94663521]
[1766353550430,1.261,2982.9,2982.3,0.94663521]
[1766353550643,1.261,2982.9,2982.3,0.442]
[1766353550844,1.00689783,2983.1,2982.3,0.442]
[1766353551214,0.9164,2983.0,2982.3,0.442]
[1766353551511,7.9658845,2982.9,2982.3,0.442]
[1766353552208,6.7048845,2982.9,2982.3,0.442]
[1766353552411,1.261,2982.7,2981.8,0.44]
[1766353552612,1.261,2982.6,2981.8,0.44]
[1766353552843,0.44,2982.6,2981.8,0.44]
[1766353553062,1.261,2982.3,2981.5,0.442]
[1766353553450,4.61414496,2982.3,2981.5,0.442]
[1766353553651,4.61414496,2982.3,2981.6,0.50483521]
[1766353559195,1.701,2982.2,2981.6,0.50483521]
[1766353559371,1.261,2982.1,2981.5,0.442]
[1766353560843,3.35345405,2982.0,2981.5,0.442]
[1766353561246,3.35345405,2982.0,2981.5,0.002]
[1766353562676,6.7069081,2982.0,2981.5,0.002]
[1766353562879,3.35345405,2982.0,2981.5,0.002]
[1766353564787,4.61435533,2982.1,2981.5,0.002]
[1766353566055,5.05435533,2982.1,2981.5,0.002]
[1766353566673,3.35335533,2982.1,2981.5,0.002]
[1766353566973,0.44,2982.1,2981.5,0.002]
[1766353567161,1.6888,2982.1,2981.6,0.46127199]
[1766353567362,3.35345405,2982.0,2981.6,0.46127199]
[1766353571985,7.9557081,2982.0,2981.5,0.002]
[1766353572371,10.06036215,2982.0,2981.5,0.002]
[1766353572569,1.2488,2981.6,2981.5,0.002]
[1766353572769,1.2488,2981.6,2980.8,0.44]
[1766353572980,0.3468,2981.5,2980.8,0.44]
[1766353573180,1.2488,2981.3,2980.8,0.44]
[1766353574059,3.35435395,2981.2,2980.5,0.002]
[1766353574260,4.60315395,2981.2,2980.5,0.002]
[1766353575065,3.35414991,2981.4,2980.7,4.6107199]
[1766353575290,0.44,2981.3,2980.7,4.6107199]
[1766353575892,0.44,2981.3,2980.5,0.002]
[1766353576193,3.70135158,2981.1,2980.5,0.002]
[1766353576487,7.05590316,2981.1,2980.5,0.002]
[1766353576687,6.70910316,2981.1,2980.5,0.002]
[1766353576985,10.77856506,2981.1,2980.4,1e-08]
[1766353577290,0.3468,2980.9,2980.4,1e-08]
[1766353577588,1.2488,2980.7,2980.4,1e-08]
[1766353577783,1.6888,2980.9,2980.4,1e-08]
[1766353579855,3.35448646,2981.1,2980.4,1e-08]
[1766353580057,0.44,2981.0,2980.4,1e-08]
[1766353580894,3.79461519,2981.0,2980.4,1e-08]
[1766353581191,5.04341519,2981.0,2980.4,1e-08]
[1766353583281,1.6888,2981.0,2980.4,1e-08]
[1766353583923,3.35374657,2981.8,2980.4,1e-08]
[1766353584072,0.3689092,2981.7,2980.5,0.46127199]
[1766353584268,0.44,2981.6,2980.5,0.46127199]
[1766353584706,1.2488,2981.5,2980.5,0.46127199]
[1766353584888,7.05505786,2981.4,2980.5,0.46127199]
[1766353585100,6.70825786,2981.4,2980.5,0.46127199]
[1766353585271,0.3468,2981.2,2980.5,0.46127199]
[1766353585600,1.6888,2981.2,2980.5,0.46127199]
[1766353587216,0.921,2981.0,2980.5,0.46127199]
[1766353587376,1.272,2981.0,2980.4,1e-08]
[1766353588408,3.79437683,2981.2,2980.4,1e-08]
[1766353588409,5.06639364,2981.2,2980.4,1e-08]
[1766353588680,7.14878728,2981.2,2980.4,1e-08]
[1766353588879,1.272,2981.1,2980.4,1e-08]
[1766353589275,3.354579,2981.0,2980.4,1e-08]
[1766353589707,0.351,2980.9,2980.4,1e-08]
[1766353590807,0.351,2980.8,2980.4,1e-08]
[1766353591700,1.272,2980.6,2980.4,1e-08]
[1766353594092,5.46881709,2980.9,2980.4,1e-08]
[1766353594403,4.62670129,2980.9,2980.4,1e-08]
[1766353594609,4.62770129,2980.9,2980.4,1e-08]
[1766353595506,1.3144,2980.8,2980.4,1e-08]
[1766353597412,4.66920942,2980.8,2980.4,1e-08]
[1766353597827,0.001,2980.9,2980.4,1e-08]
[1766353598118,3.35484819,2980.8,2980.4,1e-08]
[1766353599782,0.9422,2980.7,2980.4,1e-08]
[1766353599982,1.3144,2980.7,2980.4,1e-08]
[1766353602513,4.66937398,2980.7,2980.4,1e-08]
[1766353603012,3.35497398,2980.7,2980.4,1e-08]
[1766353603215,4.66921719,2980.8,2980.4,1e-08]
[1766353605097,3.35481719,2980.8,2980.4,1e-08]
[1766353605698,4.66921719,2980.8,2980.4,1e-08]
[1766353607827,8.02403438,2980.8,2980.4,1e-08]
[1766353608121,7.55613782,2980.8,2980.4,1e-08]
[1766353608333,10.91095501,2980.8,2979.9,0.002]
[1766353608504,10.91095501,2980.8,2978.9,0.17502424]
[1766353608505,1.3144,2979.9,2978.9,0.17502424]
[1766353608704,18.879611,2980.8,2977.6,0.02007159]
[1766353608705,0.9422,2979.2,2977.6,0.02007159]
[1766353608905,0.9422,2979.2,2977.4,13.60866215]
[1766353608906,0.44,2979.1,2977.5,2.300501]
[1766353609116,0.9422,2978.7,2977.8,4.6138388]
[1766353609414,0.9422,2978.6,2977.0,6.214855]
[1766353609614,0.9422,2978.0,2977.2,1.0086729]
[1766353609934,0.9422,2977.8,2977.3,4.6138388]
[1766353610135,0.44,2978.0,2977.0,3.35906449]
[1766353610349,0.44,2977.9,2977.3,4.6138388]
[1766353610627,0.9422,2977.8,2977.3,4.6138388]
[1766353610831,1.3144,2977.7,2977.3,4.6138388]
[1766353611136,0.02007159,2980.7,2977.3,4.6138388]
[1766353611137,0.2,2979.3,2977.6,4.6138388]
[1766353611337,1.3144,2978.6,2977.4,0.02007159]
[1766353611629,1.7544,2978.5,2978.0,4.6138388]
[1766353612337,0.44,2978.4,2977.3,7.17887958]
[1766353612529,0.44,2978.4,2976.4,3.3596564]
[1766353612530,4.6138388,2977.9,2976.9,3.35919316]
[1766353612735,0.44,2977.8,2976.9,0.33591932]
[1766353612940,0.9422,2977.6,2976.6,0.5375]
[1766353613138,0.3722,2977.4,2976.7,0.5391]
[1766353613525,0.3722,2977.4,2976.8,4.6138388]
[1766353613725,0.3722,2977.4,2976.8,5.1529388]
[1766353613923,0.3722,2977.4,2976.8,0.5391]
[1766353614123,0.3722,2977.4,2976.8,0.76981481]
[1766353614343,0.9422,2977.0,2975.9,3.97540361]
[1766353614642,0.3722,2976.7,2976.0,3.36020045]
[1766353614824,0.3722,2976.3,2975.7,3.36054386]
[1766353615026,0.3722,2976.3,2975.5,0.5407]
[1766353615224,0.3722,2976.2,2975.6,0.43414846]
[1766353615436,0.3722,2976.2,2975.7,3.36046094]
[1766353615437,1.3144,2976.2,2975.7,3.36046094]
[1766353615611,1.3144,2976.2,2975.4,0.9823]
[1766353615612,1.3144,2976.2,2975.8,3.36036077]
[1766353615816,1.3144,2976.2,2975.7,3.36051431]
[1766353616045,0.3722,2976.6,2975.5,0.5423]
[1766353616351,1.00924637,2977.2,2976.5,0.002]
[1766353616551,1.44924637,2977.2,2976.5,0.002]
[1766353616752,0.44,2977.2,2976.5,0.002]
[1766353616955,0.9895,2977.5,2976.6,0.9895]
[1766353617259,0.44,2977.5,2976.6,0.9895]
[1766353618112,0.3722,2977.3,2976.6,0.9895]
[1766353618543,1.3144,2977.3,2976.6,0.9895]
[1766353618965,1.3144,2977.3,2976.6,4.3490259]
[1766353619148,1.3144,2977.3,2976.7,0.52261616]
[1766353619736,0.3722,2977.2,2976.7,0.52261616]
[1766353620059,0.3722,2977.2,2976.6,0.9895]
[1766353620259,3.35807954,2977.9,2976.6,0.9895]
[1766353620260,0.2,2978.6,2976.7,0.9895]
[1766353620471,1.3144,2977.8,2976.7,0.9895]
[1766353620632,0.9422,2977.8,2976.7,0.9895]
[1766353620843,0.3722,2977.7,2977.3,0.04768936]
[1766353621464,0.9422,2977.7,2977.3,0.04768936]
[1766353621674,0.9422,2977.7,2976.8,3.79931201]
[1766353621675,0.3722,2977.4,2976.8,0.44]
[1766353621962,1.3144,2977.4,2976.8,0.44]
[1766353622268,0.3722,2977.4,2976.9,0.37994066]
[1766353622486,0.3722,2977.6,2976.9,1.36944066]
[1766353622768,1.7544,2978.0,2977.0,0.9895]
[1766353622974,0.3722,2977.9,2977.2,0.9895]
[1766353623322,0.9422,2977.8,2976.9,3.73903112]
[1766353623553,0.3722,2977.6,2977.0,3.77691373]
[1766353623755,1.00894768,2978.2,2977.0,3.77691373]
[1766353623756,0.3722,2978.0,2977.1,0.9895]
[1766353624130,0.3722,2978.0,2977.3,0.9895]
[1766353625054,0.3722,2978.0,2977.4,6.7172701]
[1766353625257,0.3722,2978.0,2977.5,0.77067701]
[1766353625756,1.0001,2978.6,2977.6,1.0117]
[1766353625961,1.4401,2978.6,2977.6,1.2425]
[1766353626161,0.44,2978.6,2977.6,1.2425]
[1766353626351,1.0001,2978.5,2977.6,2.11554471]
[1766353626856,0.001,2978.7,2977.8,0.2308]
[1766353627063,0.001,2978.7,2977.9,1.0117]
[1766353627240,0.001,2978.7,2978.0,3.35795836]
[1766353627628,0.001,2978.7,2978.1,0.03357845]
[1766353627851,0.001,2978.7,2978.2,1.94052952]
[1766353628056,0.001,2978.7,2978.3,1.0117]
[1766353628856,0.001,2978.7,2978.3,1.2425]
[1766353629653,0.3385,2979.3,2978.4,3.58830738]
[1766353629853,1.3386,2979.3,2978.5,1.0117]
[1766353630097,1.51646,2979.3,2978.5,1.0117]
[1766353630894,1.51646,2979.3,2978.5,1.2425]
[1766353631388,1.3386,2979.3,2978.5,1.2425]
[1766353631899,1.3386,2979.3,2978.6,3.35728194]
[1766353632087,1.3386,2979.3,2978.6,6.71456388]
[1766353632391,0.001,2978.7,2978.6,3.35728194]
[1766353632589,1.17177074,2979.3,2978.6,3.35728194]
[1766353632751,1.17177074,2979.3,2978.6,4.36898194]
[1766353633567,1.17177074,2979.3,2978.6,5.58079897]
[1766353633768,1.17177074,2979.3,2978.6,4.56909897]
[1766353633969,1.17177074,2979.3,2978.7,1.0117]
[1766353634170,1.17177074,2979.3,2978.7,4.36877898]
[1766353636401,1.0001,2979.3,2978.4,4.80588574]
[1766353636564,1.3386,2979.0,2978.4,0.44]
[1766353636766,1.3386,2979.0,2978.4,1.4517]
[1766353637105,1.3386,2979.2,2978.5,4.36907648]
[1766353637796,1.3386,2979.2,2978.5,4.36905512]
[1766353639970,1.3386,2979.2,2978.5,1.0117]
[1766353640300,1.0001,2978.9,2977.6,11.47514471]
[1766353640492,0.3385,2978.6,2977.9,0.44]
[1766353640697,1.3386,2978.6,2977.9,2.4602983]
[1766353640899,1.3386,2978.6,2977.9,1.8206983]
[1766353641116,1.3386,2978.6,2978.0,1.0117]
[1766353642895,1.3386,2978.6,2978.1,3.3578456]
[1766353643841,0.44,2978.9,2977.9,1.0085983]
[1766353643842,0.3385,2978.5,2977.9,1.0085983]
[1766353644154,1.3386,2978.3,2977.6,3.79836571]
[1766353644304,1.3386,2978.3,2977.7,3.35828272]
[1766353644504,0.3385,2978.2,2977.6,1.4517]
[1766353645104,1.3386,2978.2,2977.6,1.4517]
[1766353645506,1.0001,2978.0,2977.3,1.3858]
[1766353645746,1.3386,2977.9,2977.3,1.0137]
[1766353646398,1.3716,2977.7,2977.3,0.002]
[1766353650849,1.3716,2977.7,2976.8,1.7418]
[1766353650850,0.3402,2977.4,2976.8,1.7418]
[1766353651049,1.3716,2977.4,2976.8,1.7418]
[1766353651985,1.3716,2977.4,2976.8,5.10111121]
[1766353652188,1.3716,2977.4,2976.8,5.61142233]
[1766353653363,1.3716,2977.4,2976.9,0.9552]
[1766353654006,7.15661341,2977.7,2976.6,0.002]
[1766353654175,1.3716,2977.2,2976.6,0.9572]
[1766353655760,1.3696,2977.2,2976.6,0.9572]
[1766353655966,1.0287,2977.2,2976.6,0.002]
[1766353656162,1.3669,2977.0,2976.6,0.002]
[1766353657268,0.3382,2976.9,2976.6,0.002]
[1766353657464,0.3382,2976.8,2976.6,0.002]
[1766353657771,1.3669,2976.8,2976.5,0.002]
[1766353658001,1.3669,2976.7,2976.2,0.44]
[1766353658206,0.44,2977.2,2976.2,0.44]
[1766353658207,0.44,2977.0,2976.5,0.3497]
[1766353658424,1.3669,2977.5,2976.2,3.79994932]
[1766353658425,3.35874786,2977.3,2976.6,1.3222]
[1766353658679,1.8069,2977.3,2976.6,1.3222]
[1766353658884,0.51655407,2977.2,2976.6,1.3222]
[1766353659186,1.88345407,2977.2,2976.6,1.3222]
[1766353659392,1.3669,2977.2,2976.6,1.3222]
[1766353660229,4.72576184,2977.2,2976.6,1.3222]
[1766353660917,1.3669,2977.2,2976.6,1.3222]
[1766353661082,4.72578183,2977.2,2976.6,1.3222]
[1766353661283,0.51657818,2977.1,2976.6,1.3222]
[1766353662518,3.87555278,2977.1,2976.6,1.3222]
[1766353662882,0.51657818,2977.1,2976.6,1.3222]
[1766353665598,1.0287,2977.7,2976.9,0.9725]
[1766353665825,0.44,2977.6,2976.7,0.9725]
[1766353666028,1.3669,2977.3,2976.7,0.9725]
[1766353669166,3.35866509,2977.4,2976.6,0.44]
[1766353669456,1.3669,2977.2,2976.6,0.7897]
[1766353670259,4.72581121,2977.2,2976.6,0.7897]
[1766353670571,1.3669,2977.1,2976.6,0.44]
[1766353671330,1.3669,2977.1,2976.6,1.7622]
[1766353673045,0.001,2977.2,2976.6,1.7622]
[1766353673046,0.001,2977.2,2976.6,0.7897]
[1766353673225,0.001,2977.2,2976.7,1.3222]
[1766353673434,1.3679,2977.2,2976.7,0.9725]
[1766353673631,0.3382,2977.1,2976.6,0.44]
[1766353673851,0.3382,2977.1,2976.6,1.4125]
[1766353674266,0.3382,2977.1,2976.6,1.7622]
[1766353675664,1.0297,2977.2,2976.6,1.7622]
[1766353676247,1.0297,2977.2,2976.7,0.9725]
[1766353676661,0.001,2977.2,2976.6,0.44]
[1766353676860,0.001,2977.2,2976.7,1.3222]
[1766353677440,1.3669,2977.6,2977.0,0.9725]
[1766353677638,1.8069,2977.6,2977.0,1.3222]
[1766353677973,5.1653135,2977.6,2977.0,1.3222]
[1766353679891,1.3669,2977.5,2977.0,1.3222]
[1766353680498,0.001,2977.2,2977.0,1.3222]
[1766353680899,0.001,2977.2,2976.6,0.44]
[1766353681199,1.3669,2976.9,2976.5,0.002]
[1766353681494,0.3382,2976.6,2976.1,0.002]
[1766353681667,1.0287,2976.6,2976.1,0.002]
[1766353681865,1.3669,2976.5,2976.1,0.002]
[1766353683896,5.24322414,2976.5,2976.1,0.002]
[1766353684301,1.8835375,2976.5,2976.1,0.002]
[1766353684497,1.3669,2976.5,2976.1,0.002]
[1766353685879,4.72657609,2976.5,2976.1,0.002]
[1766353686080,0.3673,2976.4,2976.1,0.002]
[1766353686292,1.3419,2976.4,2976.1,0.002]
[1766353687093,1.3419,2976.6,2976.1,0.002]
[1766353687293,1.85604061,2976.6,2976.1,0.002]
[1766353687468,1.3419,2976.5,2976.1,0.002]
[1766353687669,0.95414061,2976.6,2976.1,0.002]
[1766353687869,1.3419,2976.5,2976.1,0.002]
[1766353688488,1.3419,2976.4,2976.1,0.002]
[1766353688688,1.3419,2976.3,2976.1,0.002]
[1766353689086,0.3673,2976.2,2976.1,0.002]
[1766353689282,0.3673,2976.2,2975.7,0.003]
[1766353689486,0.44,2976.2,2975.7,0.003]
[1766353689794,0.9746,2975.9,2975.4,0.002]
[1766353689992,0.9746,2975.9,2975.4,1.0522]
[1766353689993,1.3419,2975.9,2975.4,1.0522]
[1766353690201,5.26728283,2976.4,2975.5,1.0522]
[1766353690398,1.7819,2976.2,2975.6,0.3652]
[1766353690710,0.44,2976.2,2975.5,0.002]
[1766353690908,1.3419,2976.1,2975.5,0.002]
[1766353691073,0.44,2976.2,2975.5,0.002]
[1766353691273,0.9746,2976.0,2975.4,0.002]
[1766353691507,0.3673,2975.9,2975.4,0.002]
[1766353691695,1.3419,2976.2,2975.4,0.002]
[1766353691883,0.3673,2976.1,2975.5,1.0502]
[1766353692088,1.3419,2976.1,2975.5,1.0502]
[1766353692976,0.3673,2975.9,2975.4,0.3672]
[1766353693309,0.3673,2975.9,2975.4,0.002]
[1766353693310,1.3419,2975.9,2975.4,0.002]
[1766353694506,3.80003425,2976.2,2975.4,0.002]
[1766353694507,0.9746,2975.7,2975.4,0.002]
[1766353694693,1.3419,2975.7,2975.4,0.002]
[1766353695092,1.3419,2975.7,2975.3,0.002]
[1766353695093,1.3419,2975.8,2975.3,0.002]
[1766353695404,1.3419,2975.5,2975.1,0.44]
[1766353695607,0.44,2975.8,2975.1,0.44]
[1766353695808,0.71606778,2975.7,2975.1,0.44]
[1766353696222,0.71606778,2975.7,2974.9,0.002]
[1766353696433,1.3419,2975.6,2974.9,0.002]
[1766353696630,1.3419,2975.6,2975.0,1.0502]
[1766353696787,1.7819,2975.6,2975.1,1.0502]
[1766353696981,1.96009,2975.6,2975.1,1.0502]
[1766353697328,1.3419,2975.5,2975.0,0.002]
[1766353698122,1.3419,2975.5,2975.0,1.0522]
[1766353698588,1.3419,2975.5,2975.0,0.002]
[1766353699401,1.7819,2975.5,2975.0,0.002]
[1766353700091,1.3419,2975.4,2975.0,0.002]
[1766353701598,0.3673,2975.4,2975.0,0.002]
[1766353701802,0.44,2975.5,2975.0,1.0522]
[1766353702197,1.3419,2975.6,2975.0,1.4174]
[1766353702415,1.3419,2975.6,2975.0,0.3672]
[1766353702618,0.001,2976.5,2975.0,0.3672]
[1766353702619,0.001,2976.5,2975.5,1.0502]
[1766353702826,1.3419,2976.2,2975.5,1.4154]